{"text_format":"1","workbook":"xlsx","n_sheets":2,"sheets":["Tender Pack 1","Data Collection 1"],"not_rendered":{"charts":0,"images":11,"macros":1,"external_links":0,"defined_names":1,"comments":1,"pivot_tables":0},"unopened":[],"bounds":{"document_bytes":16777216,"sheet_cells":100000,"rows_first":2000,"rows_last":500,"rows_between":2000,"halvings":0,"cell_chars":16384,"cell_head_chars":4096},"cells_cut":0,"cells_raw":0,"read":"whole","date_system":"1900"}

{"sheet":"Tender Pack 1","index":0,"n_rows":321,"n_cols":17,"rows_kept":321,"cut":false,"hidden":false,"merged":[[43,16,45,17],[49,3,61,14],[53,16,55,17],[42,3,42,14],[43,3,47,14],[26,3,38,14],[15,3,21,14],[82,3,83,14],[96,3,96,6],[89,3,89,6],[89,7,89,14],[90,3,92,6],[90,7,92,14],[93,7,93,14],[94,7,94,14],[99,3,99,6],[101,3,102,6],[101,7,102,14],[94,3,94,6],[95,3,95,6],[96,7,96,14],[97,3,98,6],[97,7,98,14],[99,7,99,14],[100,3,100,6],[100,7,100,14],[106,3,107,14],[109,3,109,14],[87,7,88,14],[85,3,85,14],[87,3,88,6],[175,8,176,10],[175,11,176,12],[175,13,176,14],[123,3,124,14],[126,3,126,14],[93,3,93,6],[95,7,95,14],[118,3,119,6],[118,7,119,14],[116,3,117,6],[116,7,117,14],[113,3,115,6],[113,7,115,14],[111,3,112,6],[111,7,112,14],[173,3,174,4],[175,3,176,4],[173,5,174,7],[104,3,104,14],[2,3,6,14],[8,3,10,14],[27,16,29,17],[23,16,24,17],[12,3,13,14],[23,3,23,14],[17,16,20,17],[3,16,5,17],[24,3,24,14],[128,16,130,17],[168,3,172,4],[168,5,172,7],[168,8,172,10],[154,3,155,6],[154,7,155,12],[154,13,155,14],[146,3,146,14],[163,3,164,14],[166,3,166,14],[150,3,151,6],[150,7,151,12],[150,13,151,14],[152,3,153,6],[152,7,153,12],[152,13,153,14],[128,3,130,6],[128,7,130,12],[128,13,130,14],[168,11,172,12],[168,13,172,14],[177,3,178,4],[179,3,180,4],[177,5,178,7],[177,8,178,10],[177,11,178,12],[177,13,178,14],[179,8,180,10],[179,11,180,12],[179,13,180,14],[187,3,188,4],[189,3,190,4],[191,3,192,4],[183,5,184,7],[183,8,184,10],[183,11,184,12],[183,13,184,14],[185,5,186,7],[185,8,186,10],[185,11,186,12],[185,13,186,14],[181,3,182,4],[179,5,180,7],[181,5,182,7],[181,8,182,10],[181,11,182,12],[181,13,182,14],[193,8,194,10],[193,11,194,12],[139,3,140,6],[193,13,194,14],[187,5,188,7],[187,8,188,10],[187,11,188,12],[187,13,188,14],[189,5,190,7],[189,8,190,10],[189,11,190,12],[189,13,190,14],[173,8,174,10],[173,11,174,12],[173,13,174,14],[175,5,176,7],[183,3,184,4],[185,3,186,4],[131,2,132,2],[128,2,129,2],[148,2,149,2],[150,2,151,2],[131,7,132,12],[131,13,132,14],[133,3,134,6],[133,7,134,12],[133,13,134,14],[148,13,149,14],[131,3,132,6],[144,3,144,14],[148,3,149,6],[148,7,149,12],[139,2,140,2],[135,2,136,2],[133,2,134,2],[135,3,138,6],[135,7,138,12],[135,13,138,14],[208,2,209,2],[139,7,140,14],[141,3,142,6],[141,7,142,14],[203,3,204,14],[209,16,211,17],[206,3,206,14],[208,3,208,14],[289,3,319,14],[152,2,153,2],[154,2,155,2],[283,3,284,14],[286,3,287,14],[192,16,194,17],[243,3,244,14],[249,16,251,17],[191,5,192,7],[191,8,192,10],[191,11,192,12],[191,13,192,14],[193,5,194,7],[193,3,194,4],[246,3,247,14],[249,3,279,14]]}
[]
[]
[null,null,null,"\nTENDER PACK 1\nOPERATING MARGINS\n2020/21 GAS CAPACITY TENDER"]
[]
[]
[]
[]
[]
[null,null,null,"This tender pack is designed for;\n• Gas Storage Facility Operators\n• Capacity Holders at Gas Storage Facilities"]
[]
[]
[]
[null,null,null,"Issued 12 December 2019"]
[]
[]
[null,null,null,"Produced by National Grid Gas Transmission\n\nNational Grid House\nWarwick Technology Park\nGallows Hill\nWarwick\nCV34 6DA"]
[]
[]
[]
[]
[]
[]
[]
[null,null,null,"Website:"]
[null,null,null,"Operating Margins Homepage"]
[]
[null,null,null,"PLEASE NOTE:\nThis document should be read in conjuction with the template Operating Margins agreements (found on the Operating Margins Homepage) and the document entitled \"Tender Guidance Document 2020/21\".\n\nSpecific guidance on how to complete these tender sheets is provided in Sections 7 & 8 of the Operating Margins Tender Guidance Document with specific cross-references to these tender sheets via superscript numbers adjacent to the relevant fields of information. These numbers are links to and from the guidance document to simplify navigation. Please also refer to Section 6 \"Requirements of the Tender Process\" in order to understand what must accompany the tender sheets as part of submission in order that assessment can proceed on any tenders received.\n\nTerms and phrases used in this document have the meanings set out or referred to in the template Operating Margins agreements and/or the Operating Margins Tender Guidance Document."]
[]
[]
[]
[]
[]
[]
[]
[]
[]
[]
[]
[]
[null,null,null,null,null,null,null,null,null,null,null,null,null,null,null,null,"Page 1"]
[]
[]
[null,null,null,"IMPORTANT - PLEASE NOTE:"]
[null,null,null,"• All parts of this tender pack must be completed by all tenderers and submitted to be eligible for assessment.\n• A provider can submit up to three tender packs per facility to reflect various options of service and prices offered as part of this tender.\n"]
[]
[]
[]
[]
[]
[null,null,null,"Completed Tenders should be submitted by 13:00 hours (GMT) on Monday 27 January 2020 via Ariba.\n\nThe completed Tender Packs should each be uploaded under unique file names (simply add a submission number to the end of the file name).\nAfter uploading Tender Pack documents, terms and conditions must be accepted before submitting.\nSubmissions can be revised until the deadline."]
[]
[]
[]
[]
[]
[]
[]
[]
[]
[]
[]
[]
[]
[]
[]
[]
[]
[]
[]
[]
[]
[]
[]
[]
[]
[]
[]
[]
[]
[null,null,null,null,null,null,null,null,null,null,null,null,null,null,null,null,"Page 2"]
[]
[]
[null,null,null,"2020/21 OM CAPACITY TENDER"]
[]
[]
[null,null,null,"Part 1: Tenderer Details"]
[]
[null,null,1,"Tenderer's Company Name\n(including company number)"]
[]
[null,null,2,"Company Representative, Job Title"]
[null,null,3,"Company Representative Address\n(full address including postcode)"]
[]
[]
[null,null,4,"Telephone Number"]
[null,null,5,"Facsimile Number"]
[null,null,6,"Email Address"]
[null,null,7,"Legal Agent Name"]
[null,null,8,"Legal Agent Address"]
[]
[null,null,9,"Shipper Short Code"]
[null,null,10,"Achilles Registration Number"]
[null,null,"10A","Type of Credit Security Provided",null,null,null,null,null,null,null,null,null,null,null,null,0]
[]
[]
[null,null,null,"Part 2: Terms of Tender Submission"]
[]
[null,null,null,"Please detail in Appendix 1 any deviations from National Grid's template Operating Margins agreement."]
[]
[]
[null,null,null,"Part 3: Facility Details"]
[]
[null,null,11,"Facility Name\n(including company number if different)"]
[]
[null,null,12,"Facility Location\n(full address including postcode)"]
[]
[]
[null,null,13,"Service Provision Category",null,null,null,null,null,null,null,null,null,null,null,null,0]
[]
[null,null,14,"Execution Date For Tenderer’s Agreement With Facility Operator"]
[]
[null,null,null,null,null,null,null,null,null,null,null,null,null,null,null,null,"Page 3"]
[]
[]
[null,null,null,"2020/21 OM CAPACITY TENDER"]
[]
[]
[null,null,null,"Part 4: Deliverability & Availability"]
[]
[null,null,"15A","Storage Withdrawal Capacity\n(minimum requirement is 500,000 kWh/hour)",null,null,null,null,null,null,null,null,null,"kWh/Day"]
[]
[]
[null,null,"16A","Withdrawal Response Time",null,null,null,null,null,null,null,null,null,"Minutes"]
[]
[null,null,"17A","Injection Response Time",null,null,null,null,null,null,null,null,null,"As defined by tenderer"]
[]
[null,null,"18A","Planned Maintenance Periods",null,null,null,null,null,null,null,null,null,"Dates"]
[]
[]
[]
[null,null,"19A","Website for Service / Service Unavailability Clauses: 4.8 / 7.3"]
[]
[null,null,"20A","Allocation Agent                                                                  (Name, Address, Tel No)"]
[]
[]
[null,null,null,"Part 5: Charges & Capacity"]
[]
[null,null,null,"Where charges are to be levied for the provision / use of this service, these must be quantified below"]
[]
[null,null,"21A","Injection Amount\n(optional)",null,null,null,null,null,null,null,null,null,"p/kWh"]
[]
[null,null,"22A","Withdrawal Amount\n(optional)",null,null,null,null,null,null,null,null,null,"p/kWh"]
[]
[null,null,"23A","Injection Overrun Amount \n(optional)",null,null,null,null,null,null,null,null,null,"p/kWh"]
[]
[null,null,"24A","Withdrawal Overrun Amount\n(optional)",null,null,null,null,null,null,null,null,null,"p/kWh"]
[]
[]
[]
[]
[]
[null,null,null,null,null,null,null,null,null,null,null,null,null,null,null,null,"Page 4"]
[]
[]
[null,null,null,"2020/21 OM CAPACITY TENDER"]
[]
[]
[null,null,null,"Part 5: Charges & Capacity (Continued)"]
[null,null,null,"25A",null,"26A",null,null,"27A",null,null,"28A",null,"29A"]
[null,null,null,"Capacity Procurement Tranche Number",null,"Storage Space (in kWh)",null,null,"Storage Injection Capacity (in kWh per day)",null,null,"Annual Service Fee (in pence per kWh per annum)",null,"Please tick if the tranche may only be accepted in full"]
[]
[]
[]
[]
[null,null,null,1,null,null,null,null,null,null,null,null,null,null,null,null,false]
[]
[null,null,null,2,null,null,null,null,null,null,null,null,null,null,null,null,false]
[]
[null,null,null,3,null,null,null,null,null,null,null,null,null,null,null,null,false]
[]
[null,null,null,4,null,null,null,null,null,null,null,null,null,null,null,null,false]
[]
[null,null,null,5,null,null,null,null,null,null,null,null,null,null,null,null,false]
[]
[null,null,null,6,null,null,null,null,null,null,null,null,null,null,null,null,false]
[]
[null,null,null,7,null,null,null,null,null,null,null,null,null,null,null,null,false]
[]
[null,null,null,8,null,null,null,null,null,null,null,null,null,null,null,null,false]
[]
[null,null,null,9,null,null,null,null,null,null,null,null,null,null,null,null,false]
[]
[null,null,null,10,null,null,null,null,null,null,null,null,null,null,null,null,false]
[]
[null,null,null,"Total",null,{"$f":"SUM(F174:H193)","v":0},null,null,{"$f":"SUM(I174:K193)","v":0}]
[]
[]
[]
[]
[]
[]
[null,null,null,null,null,null,null,null,null,null,null,null,null,null,null,null,"Page 5"]
[]
[]
[null,null,null,"2020/21 OM CAPACITY TENDER\nAppendix 1"]
[]
[]
[null,null,null,"Part 6: Facility Withdrawal Capacity (Nominal) (Tender Pack 1)"]
[]
[null,null,"30A","Facility Withdrawal Capacity (Nominal)"]
[]
[]
[]
[]
[]
[]
[]
[]
[]
[]
[]
[]
[]
[]
[]
[]
[]
[]
[]
[]
[]
[]
[]
[]
[]
[]
[]
[]
[]
[]
[]
[null,null,null,null,null,null,null,null,null,null,null,null,null,null,null,null,"Page 6"]
[]
[]
[null,null,null,"2020/21 OM CAPACITY TENDER\nAppendix 1"]
[]
[]
[null,null,null,"AMENDMENTS TO TEMPLATE OM AGREEMENT / ALTERNATIVE TERMS"]
[]
[]
[]
[]
[]
[]
[]
[]
[]
[]
[]
[]
[]
[]
[]
[]
[]
[]
[]
[]
[]
[]
[]
[]
[]
[]
[]
[]
[]
[]
[]
[]
[]
[null,null,null,null,null,null,null,null,null,null,null,null,null,null,null,null,"Page 7"]
[]
[]
[null,null,null,"2020/21 OM CAPACITY TENDER\nAppendix 1"]
[]
[]
[null,null,null,"AMENDMENTS TO TEMPLATE OM AGREEMENT / ALTERNATIVE TERMS CONTINUED"]
[]
[]
[]
[]
[]
[]
[]
[]
[]
[]
[]
[]
[]
[]
[]
[]
[]
[]
[]
[]
[]
[]
[]
[]
[]
[]
[]
[]
[]
[]
[]
[]
[]
[null,null,null,null,null,null,null,null,null,null,null,null,null,null,null,null,"Page 8"]

{"sheet":"Data Collection 1","index":1,"n_rows":14,"n_cols":35,"rows_kept":14,"cut":false,"hidden":true,"merged":[[0,2,1,9]]}
[null,null,"Data Collection Tab for Contracts Team"]
[]
[]
["Tender Pack","Tender Ref","Tranche Ref","Main Ref","Tenderer's Company Name","Company Representative","Company Representative Address","Telephone Number","Facsimile Number","E-Mail Address","Legal Agent Name","Legal Agent Address","Shipper Short Code","Type of credit security provided","Are there any deviations from NG Template OM Agreement, Y/N","Facility Name","Facility Location","Service Provision Category","Execution Date for Tenderer's Agreement With Facility Operator","Storage Withdrawal Capacity, kWh/Day","Withdrawal Response Time, Minutes","Injection Response Time, Minutes","Planned Maintenenace Periods, Dates","Website for Clauses","Allocation Agent","Injection Charge (Optional), p/kWh","Withdrawal Charge (Optional), p/kWh","Injection Overrun Charge (Optional), p/kWh","Withdrawal Overrun Charge (Optional), p/kWh","Capacity Procurement Tranche Number","Storage Space, kWh","Storage Injection Capacity, kWh / day","Annual Service Fee, p/kWh pa","Please tick if the tranche may only be accepted in full","Has Facility Withdrawal Capacity been entered?"]
[1,1,1,{"$f":"A5&\".\"&B5&\".\"&C5","v":"1.1.1"},{"$f":"'Tender Pack 1'!H88","v":0},{"$f":"'Tender Pack 1'!H90","v":0},{"$f":"'Tender Pack 1'!H91","v":0},{"$f":"'Tender Pack 1'!H94","v":0},{"$f":"'Tender Pack 1'!H95","v":0},{"$f":"'Tender Pack 1'!H96","v":0},{"$f":"'Tender Pack 1'!H97","v":0},{"$f":"'Tender Pack 1'!H98","v":0},{"$f":"'Tender Pack 1'!H100","v":0},{"$f":"IF('Tender Pack 1'!Q102=2,\"Parent Company Guarantee\",IF('Tender Pack 1'!Q102=3,\"Letter of Credit\",IF('Tender Pack 1'!Q102=1,\"Meets Requirements\",\"UNCHECKED\")))","v":"UNCHECKED"},{"$f":"IF('Tender Pack 1'!D250=\"\",\"N\",\"Y\")","v":"N"},{"$f":"'Tender Pack 1'!H112","v":0},{"$f":"'Tender Pack 1'!H114","v":0},{"$f":"IF('Tender Pack 1'!Q117=1,\"Storage Operator\",IF('Tender Pack 1'!Q117=2,\"Primary Capacity Holder of Storage\",\"UNCHECKED\"))","v":"UNCHECKED"},{"$f":"'Tender Pack 1'!H119","v":0},{"$f":"'Tender Pack 1'!H129","v":0},{"$f":"'Tender Pack 1'!H132","v":0},{"$f":"'Tender Pack 1'!H134","v":0},{"$f":"'Tender Pack 1'!H136","v":"00:00:00"},{"$f":"'Tender Pack 1'!H140","v":0},{"$f":"'Tender Pack 1'!H142","v":0},{"$f":"'Tender Pack 1'!H149","v":0},{"$f":"'Tender Pack 1'!H151","v":0},{"$f":"'Tender Pack 1'!H153","v":0},{"$f":"'Tender Pack 1'!H155","v":0},1,{"$f":"'Tender Pack 1'!F174","v":0},{"$f":"'Tender Pack 1'!I174","v":0},{"$f":"'Tender Pack 1'!L174","v":0},{"$f":"'Tender Pack 1'!Q174","v":false},{"$f":"IF('Tender Pack 1'!D210=\"\",\"N\",\"Y\")","v":"N"}]
[1,{"$f":"B5","v":1},2,{"$f":"A6&\".\"&B6&\".\"&C6","v":"1.1.2"},{"$f":"E5","v":0},0,0,0,0,0,{"$f":"K5","v":0},{"$f":"L5","v":0},{"$f":"M5","v":0},{"$f":"N5","v":"UNCHECKED"},"N",0,0,"UNCHECKED",{"$f":"S5","v":0},0,0,0,"00:00:00",{"$f":"X5","v":0},{"$f":"Y5","v":0},0,0,0,0,2,{"$f":"'Tender Pack 1'!F176","v":0},{"$f":"'Tender Pack 1'!I176","v":0},{"$f":"'Tender Pack 1'!L176","v":0},{"$f":"'Tender Pack 1'!Q176","v":false},{"$f":"AI5","v":"N"}]
[1,{"$f":"B6","v":1},3,"1.1.3",{"$f":"E6","v":0},{"$f":"F6","v":0},0,0,0,0,0,0,{"$f":"M6","v":0},"UNCHECKED","N",0,0,"UNCHECKED",0,0,0,0,"00:00:00",0,0,0,0,{"$f":"AB6","v":0},{"$f":"AC6","v":0},3,{"$f":"'Tender Pack 1'!F178","v":0},{"$f":"'Tender Pack 1'!I178","v":0},{"$f":"'Tender Pack 1'!L178","v":0},{"$f":"'Tender Pack 1'!Q178","v":false},"N"]
[1,1,4,"1.1.4",0,0,0,0,0,0,0,0,0,"UNCHECKED","N",0,0,"UNCHECKED",0,0,0,0,"00:00:00",0,0,0,0,0,0,4,{"$f":"'Tender Pack 1'!F180","v":0},{"$f":"'Tender Pack 1'!I180","v":0},{"$f":"'Tender Pack 1'!L180","v":0},{"$f":"'Tender Pack 1'!Q180","v":false},"N"]
[1,1,5,"1.1.5",0,0,0,0,0,0,0,0,0,"UNCHECKED","N",0,0,"UNCHECKED",0,0,0,0,"00:00:00",0,0,0,0,0,0,5,{"$f":"'Tender Pack 1'!F182","v":0},{"$f":"'Tender Pack 1'!I182","v":0},{"$f":"'Tender Pack 1'!L182","v":0},{"$f":"'Tender Pack 1'!Q182","v":false},"N"]
[1,1,6,"1.1.6",0,0,0,0,0,0,0,0,0,"UNCHECKED","N",0,0,"UNCHECKED",0,0,0,0,"00:00:00",0,0,0,0,0,0,6,{"$f":"'Tender Pack 1'!F184","v":0},{"$f":"'Tender Pack 1'!I184","v":0},{"$f":"'Tender Pack 1'!L184","v":0},{"$f":"'Tender Pack 1'!Q184","v":false},"N"]
[1,1,7,"1.1.7",0,0,0,0,0,0,0,0,0,"UNCHECKED","N",0,0,"UNCHECKED",0,0,0,0,"00:00:00",0,0,0,0,0,0,7,{"$f":"'Tender Pack 1'!F186","v":0},{"$f":"'Tender Pack 1'!I186","v":0},{"$f":"'Tender Pack 1'!L186","v":0},{"$f":"'Tender Pack 1'!Q186","v":false},"N"]
[1,1,8,"1.1.8",0,0,0,0,0,0,0,0,0,"UNCHECKED","N",0,0,"UNCHECKED",0,0,0,0,"00:00:00",0,0,0,0,0,0,8,{"$f":"'Tender Pack 1'!F188","v":0},{"$f":"'Tender Pack 1'!I188","v":0},{"$f":"'Tender Pack 1'!L188","v":0},{"$f":"'Tender Pack 1'!Q188","v":false},"N"]
[1,1,9,"1.1.9",0,0,0,0,0,0,0,0,0,"UNCHECKED","N",0,0,"UNCHECKED",0,0,0,0,"00:00:00",0,0,0,0,0,0,9,{"$f":"'Tender Pack 1'!F190","v":0},{"$f":"'Tender Pack 1'!I190","v":0},{"$f":"'Tender Pack 1'!L190","v":0},{"$f":"'Tender Pack 1'!Q190","v":false},"N"]
[1,1,10,"1.1.10",0,0,0,0,0,0,0,0,0,"UNCHECKED","N",0,0,"UNCHECKED",0,0,0,0,"00:00:00",0,0,0,0,0,0,10,{"$f":"'Tender Pack 1'!F192","v":0},{"$f":"'Tender Pack 1'!I192","v":0},{"$f":"'Tender Pack 1'!L192","v":0},{"$f":"'Tender Pack 1'!Q192","v":false},"N"]